[Event "Early-Titled-Tuesday-Blitz-February-20-2024"]
[Site "Chess.com"]
[Date "2024.02.20"]
[Round "1"]
[White "ckgchess"]
[Black "DonJuan_34"]
[Result "1-0"]
[WhiteElo "2870"]
[BlackElo "2483"]
[TimeControl "180+1"]
[EndTime "8:01:46 PST"]
[Termination "ckgchess won by resignation"]

1. e4 {[%clk 0:03:00.9]} 1... e6 {[%clk 0:02:59.1]} 2. d4 {[%clk 0:03:01.2]}
2... d5 {[%clk 0:02:57.8]} 3. Nd2 {[%clk 0:03:01.7]} 3... c5 {[%clk 0:02:56.3]}
4. Ngf3 {[%clk 0:03:01.8]} 4... cxd4 {[%clk 0:02:46.1]} 5. exd5 {[%clk
0:03:01.2]} 5... Qxd5 {[%clk 0:02:45]} 6. Bc4 {[%clk 0:03:01.1]} 6... Qd6 {[%clk
0:02:43.6]} 7. O-O {[%clk 0:03:00.3]} 7... Nc6 {[%clk 0:02:43.3]} 8. Ne4 {[%clk
0:02:56.8]} 8... Qc7 {[%clk 0:02:41.9]} 9. Nxd4 {[%clk 0:02:50.3]} 9... Nxd4
{[%clk 0:02:07.4]} 10. Qxd4 {[%clk 0:02:51.2]} 10... Ne7 {[%clk 0:02:05]} 11.
Nd6+ {[%clk 0:02:49.7]} 1-0

[Event "Early-Titled-Tuesday-Blitz-February-20-2024"]
[Site "Chess.com"]
[Date "2024.02.20"]
[Round "1"]
[White "doctorcristian"]
[Black "rikchessmx"]
[Result "1-0"]
[WhiteElo "2611"]
[BlackElo "2250"]
[TimeControl "180+1"]
[EndTime "8:02:13 PST"]
[Termination "doctorcristian won by resignation"]

1. d4 {[%clk 0:03:00.9]} 1... Nf6 {[%clk 0:02:58.8]} 2. Nc3 {[%clk 0:03:00.5]}
2... e6 {[%clk 0:02:59.4]} 3. e4 {[%clk 0:03:00.4]} 3... d6 {[%clk 0:02:59.5]}
4. Be3 {[%clk 0:02:59.6]} 4... Be7 {[%clk 0:02:57.5]} 5. f4 {[%clk 0:02:59.8]}
5... c6 {[%clk 0:02:55.4]} 6. e5 {[%clk 0:03:00.2]} 6... Nd5 {[%clk 0:02:53.3]}
7. Nxd5 {[%clk 0:03:00]} 7... cxd5 {[%clk 0:02:52.8]} 8. Nf3 {[%clk 0:03:00]}
8... Nc6 {[%clk 0:02:49.4]} 9. c3 {[%clk 0:03:00.1]} 9... Qb6 {[%clk 0:02:48.9]}
10. Qd2 {[%clk 0:02:59]} 10... dxe5 {[%clk 0:02:46]} 11. fxe5 {[%clk 0:02:59.1]}
11... Bd7 {[%clk 0:02:45.1]} 12. Bd3 {[%clk 0:02:58.8]} 12... h6 {[%clk
0:02:43.4]} 13. O-O {[%clk 0:02:58.2]} 13... O-O-O {[%clk 0:02:42.9]} 14. b4
{[%clk 0:02:57.1]} 14... Kb8 {[%clk 0:02:41.5]} 15. a4 {[%clk 0:02:57.3]} 15...
f6 {[%clk 0:02:39.6]} 16. a5 {[%clk 0:02:57.1]} 16... Qc7 {[%clk 0:02:38.5]} 17.
b5 {[%clk 0:02:57.6]} 17... Nxa5 {[%clk 0:02:37.8]} 18. exf6 {[%clk 0:02:51.2]}
18... gxf6 {[%clk 0:02:36.7]} 19. Bf4 {[%clk 0:02:50.8]} 19... e5 {[%clk
0:02:34.5]} 20. dxe5 {[%clk 0:02:51.1]} 20... Nc4 {[%clk 0:02:30.7]} 21. Bxc4
{[%clk 0:02:48.4]} 21... Qxc4 {[%clk 0:02:27.3]} 22. exf6+ {[%clk 0:02:48.6]}
22... Bd6 {[%clk 0:02:26.2]} 23. Bxd6+ {[%clk 0:02:48.1]} 23... Ka8 {[%clk
0:02:26.9]} 24. Qf2 {[%clk 0:02:36.1]} 1-0

[Event "Early-Titled-Tuesday-Blitz-February-20-2024"]
[Site "Chess.com"]
[Date "2024.02.20"]
[Round "1"]
[White "EsmeraldasAnderson03"]
[Black "JRenatoMaranhao"]
[Result "1-0"]
[WhiteElo "2549"]
[BlackElo "2013"]
[TimeControl "180+1"]
[EndTime "8:02:24 PST"]
[Termination "EsmeraldasAnderson03 won by resignation"]

1. d4 {[%clk 0:03:00.5]} 1... d5 {[%clk 0:02:58.6]} 2. c4 {[%clk 0:03:01]} 2...
e6 {[%clk 0:02:57.8]} 3. cxd5 {[%clk 0:03:01.6]} 3... exd5 {[%clk 0:02:58]} 4.
Nc3 {[%clk 0:03:02.5]} 4... Nf6 {[%clk 0:02:58.4]} 5. Bg5 {[%clk 0:03:02.4]}
5... c6 {[%clk 0:02:58]} 6. Qc2 {[%clk 0:03:01.9]} 6... h6 {[%clk 0:02:57.9]} 7.
Bh4 {[%clk 0:03:01.9]} 7... Be7 {[%clk 0:02:56.2]} 8. e3 {[%clk 0:03:02.4]} 8...
Na6 {[%clk 0:02:39.3]} 9. Bxa6 {[%clk 0:03:00.2]} 9... bxa6 {[%clk 0:02:40.2]}
10. Nf3 {[%clk 0:03:00.2]} 10... Bg4 {[%clk 0:02:35.7]} 11. Ne5 {[%clk
0:02:56.3]} 11... Bh5 {[%clk 0:02:34.9]} 12. Nxc6 {[%clk 0:02:55.7]} 12... Bg6
{[%clk 0:02:15.3]} 13. Qb3 {[%clk 0:02:42.8]} 13... Qb6 {[%clk 0:02:00.9]} 14.
Nxe7 {[%clk 0:02:41.6]} 1-0

[Event "Early-Titled-Tuesday-Blitz-February-20-2024"]
[Site "Chess.com"]
[Date "2024.02.20"]
[Round "1"]
[White "The_Straightforward_Rook"]
[Black "LionTheLeon_06"]
[Result "0-1"]
[WhiteElo "2496"]
[BlackElo "2891"]
[TimeControl "180+1"]
[EndTime "8:02:51 PST"]
[Termination "LionTheLeon_06 won by resignation"]

1. Nf3 {[%clk 0:03:00.9]} 1... Nf6 {[%clk 0:02:59.4]} 2. d4 {[%clk 0:03:00.6]}
2... d5 {[%clk 0:02:59.3]} 3. e3 {[%clk 0:03:00.7]} 3... e6 {[%clk 0:02:59.7]}
4. Bd3 {[%clk 0:03:01.2]} 4... b6 {[%clk 0:03:00]} 5. O-O {[%clk 0:03:00.6]}
5... Be7 {[%clk 0:03:00.6]} 6. Nbd2 {[%clk 0:03:00.9]} 6... O-O {[%clk
0:03:01.2]} 7. e4 {[%clk 0:03:01.3]} 7... dxe4 {[%clk 0:02:59.9]} 8. Nxe4 {[%clk
0:03:01.7]} 8... Nbd7 {[%clk 0:02:59.8]} 9. Qe2 {[%clk 0:02:56.3]} 9... Bb7
{[%clk 0:02:59.9]} 10. Rd1 {[%clk 0:02:55.6]} 10... Nxe4 {[%clk 0:03:00.2]} 11.
Bxe4 {[%clk 0:02:55.6]} 11... Bxe4 {[%clk 0:03:01.1]} 12. Qxe4 {[%clk
0:02:56.5]} 12... Nf6 {[%clk 0:03:02]} 13. Qe2 {[%clk 0:02:55.9]} 13... Qd5
{[%clk 0:03:00.3]} 14. c4 {[%clk 0:02:55]} 14... Qh5 {[%clk 0:03:00.4]} 15. Bf4
{[%clk 0:02:53.8]} 15... Bd6 {[%clk 0:03:00.9]} 16. Be5 {[%clk 0:02:46.2]} 16...
Rad8 {[%clk 0:02:58.8]} 17. h3 {[%clk 0:02:39.4]} 17... Rd7 {[%clk 0:02:51.8]}
18. Rd2 {[%clk 0:02:32.7]} 18... Rfd8 {[%clk 0:02:50.1]} 19. Rad1 {[%clk
0:02:33.3]} 19... a5 {[%clk 0:02:48.5]} 20. Bxd6 {[%clk 0:02:21.8]} 20... Rxd6
{[%clk 0:02:47.8]} 21. Qe5 {[%clk 0:02:16]} 21... Qg6 {[%clk 0:02:30.6]} 22. b3
{[%clk 0:02:05.8]} 22... h6 {[%clk 0:02:30.7]} 23. Kh2 {[%clk 0:01:59.6]} 23...
Ne4 {[%clk 0:02:27.9]} 24. Rd3 {[%clk 0:01:55.3]} 24... Nxf2 {[%clk 0:02:26.9]}
0-1

[Event "Early-Titled-Tuesday-Blitz-February-20-2024"]
[Site "Chess.com"]
[Date "2024.02.20"]
[Round "1"]
[White "kpio91"]
[Black "zajka-molotok"]
[Result "1-0"]
[WhiteElo "2892"]
[BlackElo "2499"]
[TimeControl "180+1"]
[EndTime "8:03:16 PST"]
[Termination "kpio91 won by resignation"]

1. d4 {[%clk 0:03:00.9]} 1... d5 {[%clk 0:02:55.4]} 2. Nf3 {[%clk 0:02:57.3]}
2... Nf6 {[%clk 0:02:45.7]} 3. e3 {[%clk 0:02:54.8]} 3... e6 {[%clk 0:02:40.8]}
4. Bd3 {[%clk 0:02:54.4]} 4... b6 {[%clk 0:02:39.1]} 5. O-O {[%clk 0:02:51.7]}
5... Bb7 {[%clk 0:02:39.2]} 6. b3 {[%clk 0:02:51.5]} 6... Be7 {[%clk 0:02:37.8]}
7. Bb2 {[%clk 0:02:51.5]} 7... O-O {[%clk 0:02:38.3]} 8. Ne5 {[%clk 0:02:45.5]}
8... c5 {[%clk 0:02:36.4]} 9. Nd2 {[%clk 0:02:42.4]} 9... Nc6 {[%clk 0:02:34.1]}
10. f4 {[%clk 0:02:30.8]} 10... cxd4 {[%clk 0:02:24.7]} 11. exd4 {[%clk
0:02:30.3]} 11... Nb4 {[%clk 0:02:25]} 12. Be2 {[%clk 0:02:29.3]} 12... Ba6
{[%clk 0:02:20.1]} 13. c3 {[%clk 0:02:11.3]} 13... Bxe2 {[%clk 0:02:10.4]} 14.
Qxe2 {[%clk 0:02:10.7]} 14... Nc2 {[%clk 0:02:10.2]} 15. Rac1 {[%clk 0:02:01.7]}
15... Na3 {[%clk 0:02:03.2]} 16. Nc6 {[%clk 0:01:59.8]} 16... Qc7 {[%clk
0:01:59.7]} 17. Nxe7+ {[%clk 0:01:59.3]} 17... Qxe7 {[%clk 0:02:00.6]} 18. Qa6
{[%clk 0:01:59.1]} 1-0

[Event "Early-Titled-Tuesday-Blitz-February-20-2024"]
[Site "Chess.com"]
[Date "2024.02.20"]
[Round "1"]
[White "1mbl4"]
[Black "GAusal"]
[Result "0-1"]
[WhiteElo "2609"]
[BlackElo "2293"]
[TimeControl "180+1"]
[EndTime "8:03:20 PST"]
[Termination "GAusal won by resignation"]

1. d4 {[%clk 0:03:00.9]} 1... d5 {[%clk 0:02:59.8]} 2. Bf4 {[%clk 0:03:01.1]}
2... c6 {[%clk 0:02:58.8]} 3. e3 {[%clk 0:03:00.6]} 3... Nf6 {[%clk 0:02:56.6]}
4. Nc3 {[%clk 0:02:59.6]} 4... Bf5 {[%clk 0:02:56.1]} 5. Bd3 {[%clk 0:02:56.3]}
5... Bxd3 {[%clk 0:02:55.3]} 6. cxd3 {[%clk 0:02:56]} 6... e6 {[%clk 0:02:52.2]}
7. h3 {[%clk 0:02:54.7]} 7... Nbd7 {[%clk 0:02:52.6]} 8. Nf3 {[%clk 0:02:53]}
8... Be7 {[%clk 0:02:48.5]} 9. O-O {[%clk 0:02:52.7]} 9... O-O {[%clk
0:02:49.1]} 10. e4 {[%clk 0:02:53]} 10... h6 {[%clk 0:02:44.9]} 11. Qd2 {[%clk
0:02:49.9]} 11... Nh5 {[%clk 0:02:40.1]} 12. Bh2 {[%clk 0:02:44.4]} 12... Rc8
{[%clk 0:02:35.5]} 13. e5 {[%clk 0:02:44.2]} 13... g5 {[%clk 0:02:30.1]} 14. a3
{[%clk 0:02:34.3]} 14... c5 {[%clk 0:02:29.3]} 15. dxc5 {[%clk 0:02:28.6]} 15...
Nxc5 {[%clk 0:02:28.2]} 16. Rae1 {[%clk 0:02:28.3]} 16... Qb6 {[%clk 0:02:20.2]}
17. b4 {[%clk 0:02:25.3]} 17... Nb3 {[%clk 0:02:16.7]} 18. Qb2 {[%clk
0:02:22.5]} 18... Nd4 {[%clk 0:02:16.3]} 19. Nd2 {[%clk 0:02:15.8]} 19... Nb5
{[%clk 0:02:10.2]} 20. Nxb5 {[%clk 0:02:07.8]} 20... Qxb5 {[%clk 0:02:09.3]} 21.
Re3 {[%clk 0:02:01.8]} 21... Qc6 {[%clk 0:02:00.2]} 22. Qd4 {[%clk 0:01:51.4]}
22... b6 {[%clk 0:01:58.3]} 0-1

[Event "Early-Titled-Tuesday-Blitz-February-20-2024"]
[Site "Chess.com"]
[Date "2024.02.20"]
[Round "1"]
[White "Beca95"]
[Black "WindWhistler11"]
[Result "1-0"]
[WhiteElo "2875"]
[BlackElo "2492"]
[TimeControl "180+1"]
[EndTime "8:03:26 PST"]
[Termination "Beca95 won by resignation"]

1. Nf3 {[%clk 0:03:00.9]} 1... Nf6 {[%clk 0:02:59.5]} 2. c4 {[%clk 0:03:00.2]}
2... d6 {[%clk 0:02:54.6]} 3. d4 {[%clk 0:02:58.7]} 3... Nbd7 {[%clk 0:02:52.9]}
4. Nc3 {[%clk 0:02:57.8]} 4... e5 {[%clk 0:02:52.3]} 5. Bg5 {[%clk 0:02:58.4]}
5... Be7 {[%clk 0:02:52.2]} 6. Qc2 {[%clk 0:02:56.6]} 6... h6 {[%clk 0:02:50.9]}
7. Bh4 {[%clk 0:02:56.2]} 7... c6 {[%clk 0:02:46.9]} 8. O-O-O {[%clk 0:02:55.6]}
8... Qc7 {[%clk 0:02:46.8]} 9. e3 {[%clk 0:02:54.8]} 9... Nf8 {[%clk 0:02:37.4]}
10. h3 {[%clk 0:02:45.1]} 10... Bd7 {[%clk 0:02:26.9]} 11. g4 {[%clk 0:02:42.9]}
11... Ng6 {[%clk 0:02:19]} 12. Bg3 {[%clk 0:02:42.8]} 12... h5 {[%clk
0:02:18.1]} 13. g5 {[%clk 0:02:38.9]} 13... Nh7 {[%clk 0:02:17]} 14. h4 {[%clk
0:02:39]} 14... Bg4 {[%clk 0:02:16.6]} 15. Be2 {[%clk 0:02:38.9]} 15... O-O-O
{[%clk 0:02:04.3]} 16. dxe5 {[%clk 0:02:33.5]} 16... dxe5 {[%clk 0:02:01.5]} 17.
Nxe5 {[%clk 0:02:33.4]} 17... Rxd1+ {[%clk 0:01:48.3]} 18. Rxd1 {[%clk
0:02:25.3]} 18... Nxe5 {[%clk 0:01:19]} 19. Bxg4+ {[%clk 0:02:24.9]} 19... hxg4
{[%clk 0:01:14.1]} 20. Qf5+ {[%clk 0:02:23.7]} 1-0

[Event "Early-Titled-Tuesday-Blitz-February-20-2024"]
[Site "Chess.com"]
[Date "2024.02.20"]
[Round "1"]
[White "Happy1712Drummer"]
[Black "ChessQueen"]
[Result "0-1"]
[WhiteElo "2384"]
[BlackElo "2717"]
[TimeControl "180+1"]
[EndTime "8:03:52 PST"]
[Termination "ChessQueen won by checkmate"]

1. e4 {[%clk 0:03:00.9]} 1... c6 {[%clk 0:02:59.8]} 2. d4 {[%clk 0:03:00.5]}
2... d5 {[%clk 0:03:00.5]} 3. Nd2 {[%clk 0:03:00.6]} 3... dxe4 {[%clk
0:03:00.5]} 4. Nxe4 {[%clk 0:03:01.5]} 4... Nf6 {[%clk 0:03:01.1]} 5. Nxf6+
{[%clk 0:03:01.3]} 5... exf6 {[%clk 0:03:02]} 6. c3 {[%clk 0:03:01.2]} 6... Bd6
{[%clk 0:03:02.6]} 7. Bd3 {[%clk 0:03:01.2]} 7... Na6 {[%clk 0:03:02.9]} 8. Ne2
{[%clk 0:03:00.3]} 8... Nc7 {[%clk 0:03:01.7]} 9. Qc2 {[%clk 0:03:00.3]} 9... h5
{[%clk 0:02:59.5]} 10. Bd2 {[%clk 0:03:00.7]} 10... Nd5 {[%clk 0:02:55.6]} 11.
c4 {[%clk 0:02:44.6]} 11... Nb4 {[%clk 0:02:52.7]} 12. Bxb4 {[%clk 0:02:44.4]}
12... Bxb4+ {[%clk 0:02:52.5]} 13. Nc3 {[%clk 0:02:43.6]} 13... Qe7+ {[%clk
0:02:48]} 14. Be2 {[%clk 0:02:41.8]} 14... O-O {[%clk 0:02:41.8]} 15. O-O-O
{[%clk 0:02:41.5]} 15... Bxc3 {[%clk 0:02:39.6]} 16. bxc3 {[%clk 0:02:41.5]}
16... Qa3+ {[%clk 0:02:36.8]} 17. Qb2 {[%clk 0:02:40.1]} 17... Qa5 {[%clk
0:02:36.9]} 18. Bxh5 {[%clk 0:02:36.6]} 18... Qxh5 {[%clk 0:02:36.6]} 19. f3
{[%clk 0:02:34.2]} 19... Re8 {[%clk 0:02:32.9]} 20. g4 {[%clk 0:02:29.2]} 20...
Qg5+ {[%clk 0:02:32.7]} 21. Kb1 {[%clk 0:02:28.8]} 21... b5 {[%clk 0:02:28.3]}
22. c5 {[%clk 0:02:26.1]} 22... Be6 {[%clk 0:02:27.2]} 23. h4 {[%clk 0:02:25.6]}
23... Qd5 {[%clk 0:02:27]} 24. h5 {[%clk 0:02:23.6]} 24... Qxf3 {[%clk
0:02:24.7]} 25. h6 {[%clk 0:02:18.6]} 25... Bd5 {[%clk 0:02:14.2]} 26. Rhf1
{[%clk 0:01:27.1]} 26... Qe2 {[%clk 0:02:03.4]} 27. Qc1 {[%clk 0:01:21.5]} 27...
Qxa2# {[%clk 0:02:02.5]} 0-1

[Event "Early-Titled-Tuesday-Blitz-February-20-2024"]
[Site "Chess.com"]
[Date "2024.02.20"]
[Round "1"]
[White "Timerkhanov"]
[Black "pauliukevicius"]
[Result "1-0"]
[WhiteElo "2652"]
[BlackElo "2315"]
[TimeControl "180+1"]
[EndTime "8:03:53 PST"]
[Termination "Timerkhanov won by resignation"]

1. d4 {[%clk 0:03:00.9]} 1... Nf6 {[%clk 0:02:33.1]} 2. Bg5 {[%clk 0:03:00.1]}
2... d5 {[%clk 0:02:32.6]} 3. Nd2 {[%clk 0:03:00.2]} 3... c6 {[%clk 0:02:33.1]}
4. e3 {[%clk 0:02:56.6]} 4... Nbd7 {[%clk 0:02:33.1]} 5. Ngf3 {[%clk 0:02:55.5]}
5... h6 {[%clk 0:02:33.4]} 6. Bh4 {[%clk 0:02:55]} 6... Ne4 {[%clk 0:02:33.8]}
7. Nxe4 {[%clk 0:02:54.3]} 7... dxe4 {[%clk 0:02:34]} 8. Nd2 {[%clk 0:02:54.9]}
8... g5 {[%clk 0:02:32.5]} 9. Bg3 {[%clk 0:02:54]} 9... Nf6 {[%clk 0:02:33.2]}
10. Be5 {[%clk 0:02:52.9]} 10... Bf5 {[%clk 0:02:33.8]} 11. h4 {[%clk
0:02:34.4]} 11... g4 {[%clk 0:02:33.3]} 12. g3 {[%clk 0:02:16.7]} 12... h5
{[%clk 0:02:32.1]} 13. Bg2 {[%clk 0:02:15.7]} 13... Qb6 {[%clk 0:02:27.3]} 14.
O-O {[%clk 0:02:09.7]} 14... O-O-O {[%clk 0:02:24]} 15. Bxf6 {[%clk 0:02:01.4]}
15... exf6 {[%clk 0:02:23.7]} 16. Nxe4 {[%clk 0:02:01.9]} 16... Bxe4 {[%clk
0:02:23.4]} 17. Bxe4 {[%clk 0:02:01.5]} 17... Qxb2 {[%clk 0:02:23.9]} 18. Rb1
{[%clk 0:01:58.3]} 18... Qxa2 {[%clk 0:02:22.2]} 19. Ra1 {[%clk 0:01:55.2]}
19... Qe6 {[%clk 0:02:21.5]} 20. Qd3 {[%clk 0:01:54.8]} 20... Kb8 {[%clk
0:02:21.5]} 21. Rfb1 {[%clk 0:01:53.8]} 21... Bd6 {[%clk 0:02:21.6]} 22. Bxc6
{[%clk 0:01:49.5]} 22... Bxg3 {[%clk 0:02:21.5]} 23. Bxb7 {[%clk 0:01:38.9]}
23... Bxf2+ {[%clk 0:02:19.8]} 24. Kxf2 {[%clk 0:01:38.9]} 24... Qd6 {[%clk
0:02:19.8]} 25. Bg2+ {[%clk 0:01:35.5]} 25... Kc8 {[%clk 0:02:19.6]} 26. Qc4+
{[%clk 0:01:28.9]} 26... Qc7 {[%clk 0:02:15.5]} 27. Qa6+ {[%clk 0:01:28.6]}
27... Kd7 {[%clk 0:02:15]} 28. Rb7 {[%clk 0:01:29]} 28... Rc8 {[%clk 0:02:15.3]}
29. Qc6+ {[%clk 0:01:28.3]} 29... Kd8 {[%clk 0:02:14.5]} 30. Rxc7 {[%clk
0:01:28.5]} 30... Rxc7 {[%clk 0:02:15.4]} 31. Qd6+ {[%clk 0:01:28.8]} 31... Kc8
{[%clk 0:02:13.6]} 32. Be4 {[%clk 0:01:27.6]} 32... Re8 {[%clk 0:02:12.7]} 33.
Bf5+ {[%clk 0:01:27.8]} 33... Kb8 {[%clk 0:02:12.8]} 34. Rb1+ {[%clk 0:01:26.6]}
34... Ka8 {[%clk 0:02:13.4]} 35. Qxc7 {[%clk 0:01:26.2]} 1-0

[Event "Early-Titled-Tuesday-Blitz-February-20-2024"]
[Site "Chess.com"]
[Date "2024.02.20"]
[Round "1"]
[White "Ready4abattle"]
[Black "ShazilTheGOAT2006"]
[Result "0-1"]
[WhiteElo "2261"]
[BlackElo "2615"]
[TimeControl "180+1"]
[EndTime "8:03:55 PST"]
[Termination "ShazilTheGOAT2006 won by resignation"]

1. e4 {[%clk 0:03:00.9]} 1... c6 {[%clk 0:02:57.7]} 2. d4 {[%clk 0:03:00.2]}
2... d5 {[%clk 0:02:56.2]} 3. e5 {[%clk 0:03:00.5]} 3... a6 {[%clk 0:02:53.1]}
4. Nd2 {[%clk 0:02:59.9]} 4... Bf5 {[%clk 0:02:52.8]} 5. Nb3 {[%clk 0:02:59.9]}
5... e6 {[%clk 0:02:53]} 6. Nf3 {[%clk 0:02:59.3]} 6... c5 {[%clk 0:02:53.2]} 7.
c4 {[%clk 0:02:56.3]} 7... dxc4 {[%clk 0:02:50.9]} 8. Bxc4 {[%clk 0:02:55.8]}
8... b5 {[%clk 0:02:51.2]} 9. Be2 {[%clk 0:02:54.3]} 9... c4 {[%clk 0:02:50.6]}
10. Nbd2 {[%clk 0:02:53.1]} 10... Nc6 {[%clk 0:02:48.8]} 11. Nf1 {[%clk
0:02:48.9]} 11... Nge7 {[%clk 0:02:46.6]} 12. Ng3 {[%clk 0:02:44.6]} 12... Bg6
{[%clk 0:02:45]} 13. O-O {[%clk 0:02:43.5]} 13... Nd5 {[%clk 0:02:44.5]} 14. a4
{[%clk 0:02:40.4]} 14... Be7 {[%clk 0:02:43.7]} 15. axb5 {[%clk 0:02:36.8]}
15... axb5 {[%clk 0:02:44.6]} 16. Rxa8 {[%clk 0:02:36.8]} 16... Qxa8 {[%clk
0:02:45.3]} 17. Bd2 {[%clk 0:02:31.1]} 17... O-O {[%clk 0:02:44.3]} 18. b3
{[%clk 0:02:30.4]} 18... c3 {[%clk 0:02:43.2]} 19. Bg5 {[%clk 0:02:10.7]} 19...
b4 {[%clk 0:02:39.9]} 20. Bxe7 {[%clk 0:02:08.6]} 20... Ncxe7 {[%clk 0:02:39.2]}
21. Bd3 {[%clk 0:02:07]} 21... Qa2 {[%clk 0:02:36.7]} 22. Bxg6 {[%clk
0:01:59.4]} 22... Nxg6 {[%clk 0:02:36]} 23. Qb1 {[%clk 0:01:38.1]} 23... Qxb1
{[%clk 0:02:35.4]} 24. Rxb1 {[%clk 0:01:37.6]} 24... Ra8 {[%clk 0:02:33.5]} 25.
Kf1 {[%clk 0:01:13.2]} 25... Ngf4 {[%clk 0:02:33.3]} 26. Ne2 {[%clk 0:01:05.7]}
26... Nxe2 {[%clk 0:02:27.5]} 27. Kxe2 {[%clk 0:01:05.3]} 27... Ra2+ {[%clk
0:02:27.4]} 28. Kd3 {[%clk 0:01:02.4]} 28... Nf4+ {[%clk 0:02:25.2]} 0-1

[Event "Early-Titled-Tuesday-Blitz-February-20-2024"]
[Site "Chess.com"]
[Date "2024.02.20"]
[Round "1"]
[White "Mikhail_Bryakin"]
[Black "ReinisUz"]
[Result "1-0"]
[WhiteElo "2731"]
[BlackElo "2395"]
[TimeControl "180+1"]
[EndTime "8:04:00 PST"]
[Termination "Mikhail_Bryakin won by resignation"]

1. e4 {[%clk 0:02:58.6]} 1... c5 {[%clk 0:03:00]} 2. d4 {[%clk 0:02:56]} 2...
cxd4 {[%clk 0:02:58.5]} 3. Qxd4 {[%clk 0:02:56.9]} 3... Nc6 {[%clk 0:02:59]} 4.
Qd3 {[%clk 0:02:57.4]} 4... g6 {[%clk 0:02:59]} 5. Nc3 {[%clk 0:02:57.8]} 5...
Bg7 {[%clk 0:02:59.2]} 6. Nf3 {[%clk 0:02:58.5]} 6... Nf6 {[%clk 0:02:59.3]} 7.
Be2 {[%clk 0:02:59.2]} 7... d6 {[%clk 0:02:59.4]} 8. O-O {[%clk 0:02:59.9]} 8...
O-O {[%clk 0:02:59.3]} 9. Nd5 {[%clk 0:03:00.6]} 9... Bd7 {[%clk 0:02:55.2]} 10.
c3 {[%clk 0:02:57.9]} 10... a6 {[%clk 0:02:52.2]} 11. h3 {[%clk 0:02:57.6]}
11... Rc8 {[%clk 0:02:48.8]} 12. Bg5 {[%clk 0:02:55.3]} 12... Nxd5 {[%clk
0:02:44.5]} 13. exd5 {[%clk 0:02:53]} 13... Ne5 {[%clk 0:02:44.7]} 14. Nxe5
{[%clk 0:02:53.3]} 14... Bxe5 {[%clk 0:02:43.6]} 15. Bh6 {[%clk 0:02:49.2]}
15... Re8 {[%clk 0:02:42.6]} 16. Bg4 {[%clk 0:02:43.7]} 16... Bb5 {[%clk
0:02:30.5]} 17. Qe3 {[%clk 0:02:32.4]} 17... Bxf1 {[%clk 0:02:28.4]} 18. Bxc8
{[%clk 0:02:32.5]} 18... Bxg2 {[%clk 0:02:20.9]} 19. Bxb7 {[%clk 0:02:32.2]}
19... e6 {[%clk 0:02:03.9]} 20. Kxg2 {[%clk 0:02:31.2]} 20... exd5 {[%clk
0:02:03.1]} 21. Bxd5 {[%clk 0:02:28.8]} 21... Qa5 {[%clk 0:02:01.1]} 22. c4
{[%clk 0:02:26.7]} 22... Qc7 {[%clk 0:01:47.2]} 23. Re1 {[%clk 0:02:25.7]} 23...
Rb8 {[%clk 0:01:45.4]} 24. b3 {[%clk 0:02:24.9]} 24... Qd7 {[%clk 0:01:36.5]}
25. Qf3 {[%clk 0:02:24]} 25... a5 {[%clk 0:01:32]} 26. Bf4 {[%clk 0:02:24.3]}
26... Bg7 {[%clk 0:01:30.1]} 27. Bg3 {[%clk 0:02:20.9]} 27... Rd8 {[%clk
0:01:29.5]} 28. h4 {[%clk 0:02:21]} 28... h5 {[%clk 0:01:28.8]} 29. Qe4 {[%clk
0:02:19.2]} 29... a4 {[%clk 0:01:21.5]} 30. Qxg6 {[%clk 0:02:19.5]} 30... axb3
{[%clk 0:01:21.1]} 31. axb3 {[%clk 0:02:19.6]} 31... Re8 {[%clk 0:01:18]} 32.
Rxe8+ {[%clk 0:02:18.9]} 32... Qxe8 {[%clk 0:01:18.9]} 33. Qxh5 {[%clk
0:02:18.9]} 1-0

[Event "Early-Titled-Tuesday-Blitz-February-20-2024"]
[Site "Chess.com"]
[Date "2024.02.20"]
[Round "1"]
[White "GMT4114"]
[Black "Statham_01"]
[Result "0-1"]
[WhiteElo "2026"]
[BlackElo "2552"]
[TimeControl "180+1"]
[EndTime "8:04:00 PST"]
[Termination "Statham_01 won by resignation"]

1. e4 {[%clk 0:03:00.9]} 1... e5 {[%clk 0:02:56.8]} 2. Bc4 {[%clk 0:03:00.3]}
2... Nf6 {[%clk 0:02:56.4]} 3. d3 {[%clk 0:03:00.6]} 3... c6 {[%clk 0:02:56.6]}
4. Nf3 {[%clk 0:03:00]} 4... d5 {[%clk 0:02:57.2]} 5. Bb3 {[%clk 0:02:59.5]}
5... dxe4 {[%clk 0:02:57]} 6. Ng5 {[%clk 0:02:59.6]} 6... Be6 {[%clk 0:02:56.6]}
7. Bxe6 {[%clk 0:02:55]} 7... fxe6 {[%clk 0:02:57.5]} 8. Nxe4 {[%clk 0:02:54.8]}
8... Nxe4 {[%clk 0:02:50.8]} 9. dxe4 {[%clk 0:02:55.7]} 9... Qxd1+ {[%clk
0:02:51.4]} 10. Kxd1 {[%clk 0:02:54]} 10... Nd7 {[%clk 0:02:52]} 11. Bd2 {[%clk
0:02:30.5]} 11... O-O-O {[%clk 0:02:49.2]} 12. Ke2 {[%clk 0:02:30]} 12... Bc5
{[%clk 0:02:43.7]} 13. Bc3 {[%clk 0:02:28.1]} 13... Bd4 {[%clk 0:02:35.1]} 14.
f3 {[%clk 0:02:28.1]} 14... h5 {[%clk 0:02:33]} 15. Rd1 {[%clk 0:02:27.1]} 15...
Nf6 {[%clk 0:02:31.5]} 16. Rd3 {[%clk 0:02:21.5]} 16... h4 {[%clk 0:02:28.6]}
17. Nd2 {[%clk 0:02:16.9]} 17... Nh5 {[%clk 0:02:26.9]} 18. g3 {[%clk
0:00:59.2]} 18... hxg3 {[%clk 0:02:25.8]} 19. hxg3 {[%clk 0:01:00.1]} 19...
Nxg3+ {[%clk 0:02:24.7]} 0-1